fUST/lending_fUST_20240327
["ID","MTS","AMOUNT","RATE_DAILY","PERIOD"]
[320645244,1711485044876,-577.11,0.00019178,2]
[320645246,1711485044885,-500.0,0.00019178,2]
[320645248,1711485044894,-2932.87,0.00019178,2]
[320645249,1711485044903,-500.0,0.00019178,2]
[320645251,1711485044912,-905.03,0.00019178,2]
[320645254,1711485044928,-500.0,0.00019178,2]
[320645256,1711485044956,-500.0,0.00019178,2]
[320645258,1711485044984,-1476.9,0.00019178,2]
[320645259,1711485045014,-500.0,0.00019178,2]
[320645262,1711485045046,-500.0,0.00019178,2]
[320645263,1711485045078,-403.97179108,0.00019178,2]
[320645265,1711485045112,-437.53477807,0.00019178,2]
[320645267,1711485045126,-1505.47,0.00019178,2]
[320645269,1711485045135,-500.0,0.00019178,2]
[320645272,1711485045145,-500.0,0.00019178,2]
[320645274,1711485045154,-500.0,0.00019178,2]
[320645275,1711485045164,-2084.74,0.00019178,2]
[320645277,1711485045174,-500.0,0.00019178,2]
[320645279,1711485045183,-500.0,0.00019178,2]
[320645282,1711485045195,-500.0,0.00019178,2]
[320645284,1711485045205,-912.49,0.00019178,2]
[320645286,1711485045216,-500.0,0.00019178,2]
[320645287,1711485045226,-500.0,0.00019178,2]
[320645289,1711485045238,-2390.27,0.00019178,2]
[320645291,1711485045247,-1350.55,0.00019178,2]
[320645293,1711485045257,-33868.51,0.00019178,2]
[320645295,1711485045266,-500.0,0.00019178,2]
[320645297,1711485045276,-500.0,0.00019178,2]
[320645299,1711485045285,-500.0,0.00019178,2]
[320645301,1711485045294,-500.0,0.00019178,2]
[320645303,1711485045303,-803.39,0.00019178,2]
[320645305,1711485045314,-1317.07,0.00019178,2]
[320645307,1711485045324,-500.0,0.00019178,2]
[320645310,1711485045333,-500.0,0.00019178,2]
[320645312,1711485045342,-500.0,0.00019178,2]
[320645314,1711485045351,-500.0,0.00019178,2]
[320645316,1711485045360,-500.0,0.00019178,2]
[320645318,1711485045369,-907.78,0.00019178,2]
[320645320,1711485045378,-5453.0,0.00019178,2]
[320645322,1711485045386,-884.49,0.00019178,2]
[320645324,1711485045395,-7737.89,0.00019178,2]
[320645326,1711485045404,-500.0,0.00019178,2]
[320645328,1711485045414,-4332.95,0.00019178,2]
[320645330,1711485045423,-500.0,0.00019178,2]
[320645332,1711485045432,-500.0,0.00019178,2]
[320645334,1711485045442,-2354.68,0.00019178,2]
[320645336,1711485045452,-500.0,0.00019178,2]
[320645338,1711485045460,-500.0,0.00019178,2]
[320645340,1711485045470,-500.0,0.00019178,2]
[320645342,1711485045480,-500.0,0.00019178,2]
[320645344,1711485045488,-500.0,0.00019178,2]
[320645346,1711485045497,-591.7,0.00019178,2]
[320645348,1711485045506,-500.0,0.00019178,2]
[320645350,1711485045515,-500.0,0.00019178,2]
[320645352,1711485045524,-500.0,0.00019178,2]
[320645354,1711485045534,-350.49525595,0.00019178,2]
[320645356,1711485045542,-2382.46,0.00019178,2]
[320645358,1711485045551,-500.0,0.00019178,2]
[320645360,1711485045561,-235.69976161,0.00019178,2]
[320645362,1711485045569,-834.25,0.00019178,2]
[320645364,1711485045578,-808.52,0.00019178,2]
[320645366,1711485045588,-500.0,0.00019178,2]
[320645368,1711485045597,-500.0,0.00019178,2]
[320645370,1711485045606,-6761.97,0.00019178,2]
[320645371,1711485045614,-500.0,0.00019178,2]
[320645373,1711485045623,-500.0,0.00019178,2]
[320645375,1711485045632,-475.75534086,0.00019178,2]
[320645377,1711485045642,-500.0,0.00019178,2]
[320645380,1711485045651,-500.0,0.00019178,2]
[320645381,1711485045660,-691.75,0.00019178,2]
[320645384,1711485045670,-500.0,0.00019178,2]
[320645386,1711485045679,-500.0,0.00019178,2]
[320645387,1711485045689,-500.0,0.00019178,2]
[320645389,1711485045699,-360.15762884,0.00019178,2]
[320645391,1711485045708,-11210.94,0.00019178,2]
[320645394,1711485045718,-500.0,0.00019178,2]
[320645395,1711485045727,-500.0,0.00019178,2]
[320645397,1711485045736,-500.0,0.00019178,2]
[320645400,1711485045746,-500.0,0.00019178,2]
[320645401,1711485045754,-500.0,0.00019178,2]
[320645403,1711485045763,-1262.95,0.00019178,2]
[320645405,1711485045773,-588.50494038,0.00019178,2]
[320645407,1711485045782,-32489.45,0.00019178,2]
[320645409,1711485045791,-608.38,0.00019178,2]
[320645411,1711485045800,-174.05366245,0.00019178,2]
[320645413,1711485045811,-500.0,0.00019178,2]
[320645415,1711485045820,-500.0,0.00019178,2]
[320645417,1711485045829,-500.0,0.00019178,2]
[320645419,1711485045838,-734.97,0.00019178,2]
[320645421,1711485045847,-2804.68,0.00019178,2]
[320645423,1711485045856,-500.0,0.00019178,2]
[320645425,1711485045865,-500.0,0.00019178,2]
[320645427,1711485045874,-500.0,0.00019178,2]
[320645429,1711485045883,-9985.89,0.00019178,2]
[320645431,1711485045892,-546.75,0.00019178,2]
[320645433,1711485045902,-3171.85,0.00019178,2]
[320645435,1711485045911,-575.68,0.00019178,2]
[320645437,1711485045920,-3057.38,0.00019178,2]
[320645439,1711485045929,-499.41723378,0.00019178,2]
[320645441,1711485045940,-451.28658149,0.00019178,2]
[320645443,1711485045949,-389.19691527,0.00019178,2]
[320645445,1711485045957,-500.0,0.00019178,2]
[320645447,1711485045967,-2499.94,0.00019178,2]
[320645448,1711485045975,-500.0,0.00019178,2]
[320645450,1711485045985,-6265.98,0.00019178,2]
[320645452,1711485045994,-500.0,0.00019178,2]
[320645454,1711485046003,-500.0,0.00019178,2]
[320645456,1711485046012,-500.0,0.00019178,2]
[320645458,1711485046021,-557.11,0.00019178,2]
[320645460,1711485046030,-500.0,0.00019178,2]
[320645462,1711485046039,-500.0,0.00019178,2]
[320645464,1711485046048,-500.0,0.00019178,2]
[320645466,1711485046057,-500.0,0.00019178,2]
[320645468,1711485046066,-168.892983,0.00019178,2]
[320645470,1711485046075,-165.644278,0.00019178,2]
[320645472,1711485046084,-169.588992,0.00019178,2]
[320645474,1711485046093,-620.0342571,0.00019284,2]
[320645476,1711485046102,-2000.0,0.00019335,2]
[320645478,1711485046111,-2000.0,0.00019422,2]
[320645480,1711485046121,-9676.560753,0.000195,3]
[320645484,1711485046131,-155.48594838,0.000195,2]
[320645488,1711485046140,-153.0,0.000195,2]
[320645490,1711485046148,-153.0,0.000195,2]
[320645492,1711485046157,-153.0,0.000195,2]
[320645495,1711485046176,-153.0,0.000195,2]
[320645498,1711485046203,-153.0,0.000195,2]
[320645501,1711485046223,-153.0,0.000195,2]
[320645504,1711485046245,-153.0,0.000195,2]
[320645507,1711485046255,-154.603892,0.000195,2]
[320645510,1711485046265,-153.0,0.000195,2]
[320645513,1711485046275,-153.0,0.000195,2]
[320645516,1711485046284,-153.0,0.000195,2]
[320645519,1711485046294,-153.7816236,0.000195,2]
[320645522,1711485046303,-153.0,0.000195,2]
[320645525,1711485046313,-153.0,0.000195,2]
[320645528,1711485046322,-153.0,0.000195,2]
[320645531,1711485046331,-153.0,0.000195,2]
[320645534,1711485046341,-153.0,0.000195,2]
[320645536,1711485046350,-153.0,0.000195,2]
[320645538,1711485046359,-153.0,0.000195,2]
[320645540,1711485046368,-153.0,0.000195,2]
[320645542,1711485046377,-153.0,0.000195,2]
[320645544,1711485046386,-153.0,0.000195,2]
[320645546,1711485046396,-153.0,0.000195,2]
[320645548,1711485046405,-153.0,0.000195,2]
[320645550,1711485046414,-153.0,0.000195,2]
[320645552,1711485046424,-153.0,0.000195,2]
[320645554,1711485046433,-350.9634098,0.000195,2]
[320645556,1711485046445,-153.0,0.000195,2]
[320645558,1711485046454,-153.0,0.000195,2]
[320645559,1711485046464,-153.0,0.000195,2]
[320645561,1711485046472,-153.0,0.000195,2]
[320645563,1711485046481,-153.0,0.000195,2]
[320645565,1711485046491,-153.0,0.000195,2]
[320645567,1711485046500,-153.0,0.000195,2]
[320645569,1711485046509,-153.0,0.000195,2]
[320645571,1711485046518,-306.0,0.000195,2]
[320645573,1711485046528,-153.0,0.000195,2]
[320645575,1711485046537,-153.0,0.000195,2]
[320645577,1711485046546,-153.0,0.000195,2]
[320645579,1711485046555,-153.0,0.000195,2]
[320645581,1711485046565,-153.0,0.000195,2]
[320645582,1711485046574,-153.0,0.000195,2]
[320645584,1711485046583,-153.0,0.000195,2]
[320645586,1711485046592,-306.0,0.000195,2]
[320645588,1711485046601,-306.0,0.000195,2]
[320645590,1711485046610,-153.0,0.000195,2]
[320645592,1711485046619,-153.0,0.000195,2]
[320645593,1711485046628,-153.0,0.000195,2]
[320645595,1711485046637,-153.0,0.000195,2]
[320645597,1711485046646,-153.0,0.000195,2]
[320645599,1711485046655,-153.0,0.000195,2]
[320645601,1711485046664,-153.0,0.000195,2]
[320645603,1711485046673,-153.0,0.000195,2]
[320645605,1711485046683,-153.0,0.000195,2]
[320645607,1711485046694,-153.0,0.000195,2]
[320645609,1711485046704,-153.0,0.000195,2]
[320645611,1711485046713,-153.0,0.000195,2]
[320645613,1711485046722,-153.0,0.000195,2]
[320645615,1711485046731,-249.465262,0.000195,2]
[320645625,1711485046741,-153.0,0.000195,2]
[320645627,1711485046835,-153.0,0.000195,2]
[320645629,1711485046844,-2000.0,0.00019818,2]
[320645631,1711485046853,-7760.73872435,0.0001988,2]
[320645633,1711485046863,-236.85437915,0.000199,2]
[320645635,1711485046871,-309.1352698,0.000199,2]
[320645637,1711485046881,-153.0,0.000199,2]
[320645639,1711485046890,-153.0,0.000199,2]
[320645641,1711485046899,-677.88538949,0.00019917,2]
[320645643,1711485046908,-4658.75868468,0.0001998,2]
[320645645,1711485046917,-7492.0573456,0.0001999,2]
[320645647,1711485046925,-20681.22376659,0.0002,2]
[320645648,1711485046935,-155.01550155,0.0002,2]
[320645650,1711485046946,-684.16921587,0.0002,2]
[320645652,1711485046954,-155.01550155,0.0002,2]
[320645654,1711485046964,-239.56257658,0.0002,2]
[320645656,1711485046973,-155.01550155,0.0002,2]
[320645658,1711485046982,-300.24882924,0.0002,2]
[320645660,1711485046991,-155.01550155,0.0002,2]
[320645662,1711485047001,-400.0,0.0002,2]
[320645664,1711485047010,-299.9035326,0.0002,2]
[320645666,1711485047019,-1668.9970006,0.0002,2]
[320645668,1711485047028,-296.0,0.0002,2]
[320645670,1711485047038,-277704.71,0.0002,2]
[320645672,1711485047047,-7242.45831602,0.0002,2]
[320645674,1711485047056,-200.0,0.0002,2]
[320645676,1711485047065,-151.01208097,0.00020196,7]
[320645678,1711485047074,-620.00171285,0.00020248,2]
[320645680,1711485047083,-151.01208097,0.00020609,4]
[320645682,1711485047092,-201.9518537,0.00020658,2]
[320645683,1711485047101,-201.9518537,0.00020658,2]
[320645685,1711485047110,-201.9518537,0.00020658,2]
[320645687,1711485047119,-201.9518537,0.00020658,2]
[320645689,1711485047128,-403.6894099,0.00020658,2]
[320645691,1711485047137,-201.9518537,0.00020658,2]
[320645693,1711485047146,-201.9518537,0.00020658,2]
[320645695,1711485047155,-153.0,0.00020868,2]
[320645697,1711485047164,-153.0,0.00020868,2]
[320645699,1711485047172,-153.0,0.00020868,2]
[320645701,1711485047182,-153.0,0.00020868,2]
[320645703,1711485047191,-2000.0,0.0002088,2]
[320645704,1711485047200,-963.0,0.00021,2]
[320645706,1711485047210,-963.0,0.00021,2]
[320645708,1711485047222,-7498.5832053,0.00021,2]
[320645710,1711485047232,-161.04068102,0.00021,2]
[320645712,1711485047241,-12031.41046732,0.00021,2]
[320645714,1711485047249,-582.0,0.00021,2]
[320645716,1711485047259,-151.01208097,0.00021029,2]
[320645718,1711485047268,-500.0,0.00021222,7]
[320645720,1711485047276,-500.0,0.00021222,7]
[320645722,1711485047285,-500.0,0.00021222,7]
[320645724,1711485047294,-500.0,0.00021222,7]
[320645726,1711485047306,-500.0,0.00021222,7]
[320645727,1711485047315,-500.0,0.00021222,7]
[320645728,1711485047323,-500.0,0.00021222,7]
[320645729,1711485047332,-500.0,0.00021222,7]
[320645730,1711485047341,-500.0,0.00021222,7]
[320645731,1711485047350,-500.0,0.00021222,7]
[320645732,1711485047358,-500.0,0.00021222,7]
[320645733,1711485047367,-500.0,0.00021222,7]
[320645734,1711485047376,-500.0,0.00021222,7]
[320645735,1711485047385,-500.0,0.00021222,7]
[320645736,1711485047393,-500.0,0.00021222,7]
[320645737,1711485047402,-500.0,0.00021222,7]
[320645738,1711485047411,-234.14,0.00021222,7]
[320645739,1711485047421,-620.00008564,0.0002126,2]
[320645740,1711485047429,-2000.0,0.00021295,2]
[320645741,1711485047438,-8144.95804552,0.000215,4]
[320645742,1711485047448,-1000.0,0.00021637,2]
[320645743,1711485047457,-2000.0,0.00021651,2]
[320645744,1711485047466,-1000.0,0.00021651,2]
[320645745,1711485047475,-1000.0,0.00021662,2]
[320645746,1711485047484,-1005.88399124,0.00021675,2]
[320645747,1711485047493,-1000.0,0.00021692,2]
[320645748,1711485047502,-2000.0,0.00021708,2]
[320645749,1711485047511,-1000.0,0.00021726,2]
[320645750,1711485047520,-1000.0,0.0002179,2]
[320645752,1711485047529,-1000.0,0.00021795,2]
[320645754,1711485047538,-201.9518537,0.00021808,2]
[320645756,1711485047547,-201.9518537,0.00021808,2]
[320645758,1711485047556,-201.9518537,0.00021808,2]
[320645759,1711485047565,-201.9518537,0.00021808,2]
[320645761,1711485047574,-201.9518537,0.00021808,2]
[320645763,1711485047586,-201.9518537,0.00021808,2]
[320645765,1711485047595,-201.9518537,0.00021808,2]
[320645767,1711485047604,-201.9518537,0.00021808,2]
[320645769,1711485047613,-201.9518537,0.00021808,2]
[320645771,1711485047622,-201.9518537,0.00021808,2]
[320645773,1711485047631,-201.9518537,0.00021808,2]
[320645775,1711485047642,-201.9518537,0.00021808,2]
[320645777,1711485047651,-403.7757571,0.00021808,2]
[320645779,1711485047660,-201.9518537,0.00021808,2]
[320645781,1711485047669,-201.9518537,0.00021808,2]
[320645783,1711485047678,-201.9518537,0.00021808,2]
[320645785,1711485047687,-201.9518537,0.00021808,2]
[320645787,1711485047699,-201.9518537,0.00021808,2]
[320645789,1711485047708,-201.9518537,0.00021808,2]
[320645791,1711485047717,-201.9950273,0.00021808,2]
[320645792,1711485047726,-201.9950273,0.00021808,2]
[320645794,1711485047736,-404.5079747,0.00021808,2]
[320645796,1711485047745,-201.9518537,0.00021808,2]
[320645798,1711485047754,-201.9518537,0.00021808,2]
[320645800,1711485047764,-205.7511311,0.00021808,2]
[320645802,1711485047774,-197.6371397,0.00021808,2]
[320645804,1711485047782,-183.96895006,0.00021813,2]
[320645806,1711485047792,-1000.0,0.00021827,2]
[320645808,1711485047801,-1000.0,0.00021828,2]
[320645810,1711485047811,-1000.0,0.0002183,2]
[320645812,1711485047820,-1000.0,0.00021885,2]
[320645814,1711485047829,-1000.0,0.00021885,2]
[320645816,1711485047837,-1000.0,0.00021887,2]
[320645818,1711485047846,-150.219011,0.000219,2]
[320645820,1711485047855,-2000.0,0.00021904,2]
[320645822,1711485047864,-500.0,0.00021917,2]
[320645823,1711485047874,-500.0,0.00021917,2]
[320645825,1711485047883,-500.0,0.00021917,2]
[320645827,1711485047897,-500.0,0.00021917,2]
[320645829,1711485047906,-500.0,0.00021917,2]
[320645831,1711485047915,-500.0,0.00021917,2]
[320645833,1711485047924,-500.0,0.00021917,2]
[320645835,1711485047933,-500.0,0.00021917,2]
[320645837,1711485047944,-500.0,0.00021917,2]
[320645839,1711485047952,-476.54691796,0.00021917,2]
[320645841,1711485047961,-500.0,0.00021917,2]
[320645843,1711485047970,-564.63,0.00021917,2]
[320645845,1711485047979,-228.09737305,0.00021917,2]
[320645846,1711485047988,-616.62,0.00021917,2]
[320645847,1711485047996,-500.0,0.00021917,2]
[320645848,1711485048005,-500.0,0.00021917,2]
[320645849,1711485048014,-525.35655938,0.00021917,2]
[320645850,1711485048022,-500.0,0.00021917,2]
[320645851,1711485048031,-500.0,0.00021917,2]
[320645852,1711485048040,-500.0,0.00021917,2]
[320645853,1711485048048,-500.0,0.00021917,2]
[320645854,1711485048057,-409.2803834,0.00021917,2]
[320645855,1711485048066,-662.99,0.00021917,2]
[320645856,1711485048075,-500.0,0.00021917,2]
[320645857,1711485048083,-500.0,0.00021917,2]
[320645858,1711485048092,-500.0,0.00021917,2]
[320645859,1711485048112,-500.0,0.00021917,2]
[320645860,1711485048130,-538.27,0.00021917,2]
[320645861,1711485048138,-904.18,0.00021917,2]
[320645862,1711485048148,-500.0,0.00021917,2]
[320645863,1711485048156,-500.0,0.00021917,2]
[320645864,1711485048165,-500.0,0.00021917,2]
[320645865,1711485048174,-500.0,0.00021917,2]
[320645866,1711485048183,-500.0,0.00021917,2]
[320645867,1711485048193,-500.0,0.00021917,2]
[320645868,1711485048202,-500.0,0.00021917,2]
[320645869,1711485048211,-500.0,0.00021917,2]
[320645870,1711485048220,-282.14181559,0.00021917,2]
[320645871,1711485048233,-500.0,0.00021917,2]
[320645872,1711485048242,-986.2,0.00021917,2]
[320645874,1711485048251,-443.93091613,0.00021917,2]
[320645876,1711485048261,-509.21253125,0.00021917,2]
[320645878,1711485048270,-500.0,0.00021917,2]
[320645879,1711485048279,-262.34593309,0.00021917,2]
[320645881,1711485048287,-500.0,0.00021917,2]
[320645883,1711485048296,-808.42,0.00021917,2]
[320645885,1711485048307,-500.0,0.00021917,2]
[320645887,1711485048317,-720.91,0.00021917,2]
[320645889,1711485048326,-500.0,0.00021917,2]
[320645891,1711485048335,-526.63,0.00021917,2]
[320645893,1711485048344,-500.0,0.00021917,2]
[320645895,1711485048353,-500.0,0.00021917,2]
[320645897,1711485048362,-500.0,0.00021917,2]
[320645899,1711485048371,-728.8,0.00021917,2]
[320645901,1711485048380,-500.0,0.00021917,2]
[320645903,1711485048389,-500.0,0.00021917,2]
[320645905,1711485048398,-500.0,0.00021917,2]
[320645907,1711485048407,-500.0,0.00021917,2]
[320645909,1711485048416,-500.0,0.00021917,2]
[320645911,1711485048426,-1148.05,0.00021917,2]
[320645913,1711485048435,-582.79,0.00021917,2]
[320645914,1711485048444,-500.0,0.00021917,2]
[320645916,1711485048454,-500.0,0.00021917,2]
[320645918,1711485048464,-500.0,0.00021917,2]
[320645920,1711485048473,-500.0,0.00021917,2]
[320645922,1711485048482,-500.0,0.00021917,2]
[320645933,1711485048572,-500.0,0.00021917,2]
[320645935,1711485048582,-500.0,0.00021917,2]
[320645937,1711485048591,-500.0,0.00021917,2]
[320645938,1711485048600,-500.0,0.00021917,2]
[320645940,1711485048610,-640.14,0.00021917,2]
[320645942,1711485048619,-500.0,0.00021917,2]
[320645944,1711485048629,-718.91,0.00021917,2]
[320645946,1711485048638,-500.0,0.00021917,2]
[320645948,1711485048647,-671.15,0.00021917,2]
[320645950,1711485048657,-500.0,0.00021917,2]
[320645952,1711485048666,-500.0,0.00021917,2]
[320645954,1711485048675,-698.97,0.00021917,2]
[320645956,1711485048684,-590.44,0.00021917,2]
[320645958,1711485048693,-566.86,0.00021917,2]
[320645960,1711485048702,-561.63,0.00021917,2]
[320645962,1711485048712,-500.0,0.00021917,2]
[320645964,1711485048721,-702.83,0.00021917,2]
[320645966,1711485048730,-500.0,0.00021917,2]
[320645968,1711485048739,-500.0,0.00021917,2]
[320645970,1711485048748,-500.0,0.00021917,2]
[320645972,1711485048757,-500.0,0.00021917,2]
[320645974,1711485048766,-1059.6,0.00021917,2]
[320645976,1711485048775,-500.0,0.00021917,2]
[320645978,1711485048784,-802.08,0.00021917,2]
[320645980,1711485048793,-802.08,0.00021917,2]
[320645982,1711485048810,-1070.32,0.00021917,2]
[320645984,1711485048819,-639.4,0.00021917,2]
[320645986,1711485048829,-500.0,0.00021917,2]
[320645988,1711485048838,-624.11969436,0.00021917,2]
[320645990,1711485048849,-578.66,0.00021917,2]
[320645992,1711485048859,-1939.19,0.00021917,2]
[320645994,1711485048868,-845.56,0.00021917,2]
[320645996,1711485048878,-552.06431431,0.00021917,2]
[320645998,1711485048887,-817.39,0.00021917,2]
[320646000,1711485048896,-2829.99,0.00021917,2]
[320646002,1711485048906,-500.0,0.00021917,2]
[320646004,1711485048916,-500.0,0.00021917,2]
[320646006,1711485048925,-500.0,0.00021917,2]
[320646008,1711485048934,-1281.17,0.00021917,2]
[320646010,1711485048945,-3125.2,0.00021917,2]
[320646012,1711485048955,-676.76,0.00021917,2]
[320646014,1711485048965,-322.72311654,0.00021917,2]
[320646016,1711485048974,-500.0,0.00021917,2]
[320646018,1711485048983,-500.0,0.00021917,2]
[320646020,1711485048992,-500.0,0.00021917,2]
[320646022,1711485049001,-500.0,0.00021917,2]
[320646024,1711485049011,-566.73,0.00021917,2]
[320646026,1711485049021,-500.0,0.00021917,2]
[320646028,1711485049030,-500.0,0.00021917,2]
[320646030,1711485049040,-500.0,0.00021917,2]
[320646032,1711485049050,-2891.24,0.00021917,2]
[320646034,1711485049058,-667.62,0.00021917,2]
[320646036,1711485049068,-500.0,0.00021917,2]
[320646038,1711485049078,-500.0,0.00021917,2]
[320646040,1711485049087,-500.0,0.00021917,2]
[320646041,1711485049097,-530.67,0.00021917,2]
[320646044,1711485049107,-500.0,0.00021917,2]
[320646045,1711485049116,-500.0,0.00021917,2]
[320646047,1711485049126,-578.9,0.00021917,2]
[320646049,1711485049135,-2668.13,0.00021917,2]
[320646052,1711485049157,-500.0,0.00021917,2]
[320646053,1711485049167,-500.0,0.00021917,2]
[320646055,1711485049176,-500.0,0.00021917,2]
[320646057,1711485049185,-660.39,0.00021917,2]
[320646059,1711485049196,-577.11,0.00021917,2]
[320646061,1711485049206,-500.0,0.00021917,2]
[320646063,1711485049215,-2932.87,0.00021917,2]
[320646065,1711485049228,-500.0,0.00021917,2]
[320646067,1711485049238,-905.03,0.00021917,2]
[320646069,1711485049247,-500.0,0.00021917,2]
[320646071,1711485049257,-500.0,0.00021917,2]
[320646073,1711485049266,-1476.9,0.00021917,2]
[320646075,1711485049276,-500.0,0.00021917,2]
[320646077,1711485049285,-500.0,0.00021917,2]
[320646079,1711485049295,-1505.47,0.00021917,2]
[320646081,1711485049305,-500.0,0.00021917,2]
[320646083,1711485049314,-500.0,0.00021917,2]
[320646085,1711485049324,-390.19195606,0.00021917,2]
[320646087,1711485049333,-2084.74,0.00021917,2]
[320646089,1711485049343,-500.0,0.00021917,2]
[320646091,1711485049352,-500.0,0.00021917,2]
[320646093,1711485049362,-500.0,0.00021917,2]
[320646095,1711485049371,-912.49,0.00021917,2]
[320646097,1711485049380,-320.81653474,0.00021917,2]
[320646100,1711485049390,-500.0,0.00021917,2]
[320646101,1711485049400,-2390.27,0.00021917,2]
[320646103,1711485049409,-1350.55,0.00021917,2]
[320646105,1711485049418,-33868.51,0.00021917,2]
[320646107,1711485049428,-500.0,0.00021917,2]
[320646109,1711485049437,-500.0,0.00021917,2]
[320646111,1711485049448,-500.0,0.00021917,2]
[320646113,1711485049459,-500.0,0.00021917,2]
[320646115,1711485049469,-803.39,0.00021917,2]
[320646117,1711485049479,-1317.07,0.00021917,2]
[320646119,1711485049489,-500.0,0.00021917,2]
[320646121,1711485049498,-500.0,0.00021917,2]
[320646123,1711485049508,-500.0,0.00021917,2]
[320646125,1711485049518,-500.0,0.00021917,2]
[320646128,1711485049527,-907.78,0.00021917,2]
[320646130,1711485049537,-5453.0,0.00021917,2]
[320646131,1711485049546,-884.49,0.00021917,2]
[320646133,1711485049556,-7737.89,0.00021917,2]
[320646136,1711485049566,-500.0,0.00021917,2]
[320646137,1711485049575,-4332.95,0.00021917,2]
[320646139,1711485049585,-500.0,0.00021917,2]
[320646141,1711485049595,-500.0,0.00021917,2]
[320646143,1711485049604,-2354.68,0.00021917,2]
[320646145,1711485049613,-500.0,0.00021917,2]
[320646147,1711485049622,-500.0,0.00021917,2]
[320646149,1711485049632,-593.11262598,0.00021917,2]
[320646151,1711485049641,-500.0,0.00021917,2]
[320646153,1711485049651,-500.0,0.00021917,2]
[320646155,1711485049660,-591.7,0.00021917,2]
[320646157,1711485049669,-500.0,0.00021917,2]
[320646159,1711485049678,-500.0,0.00021917,2]
[320646161,1711485049687,-500.0,0.00021917,2]
[320646163,1711485049698,-2382.46,0.00021917,2]
[320646166,1711485049709,-279.30560645,0.00021917,2]
[320646168,1711485049718,-834.25,0.00021917,2]
[320646169,1711485049728,-808.52,0.00021917,2]
[320646171,1711485049737,-500.0,0.00021917,2]
[320646173,1711485049747,-500.0,0.00021917,2]
[320646175,1711485049756,-6761.97,0.00021917,2]
[320646177,1711485049766,-500.0,0.00021917,2]
[320646179,1711485049775,-500.0,0.00021917,2]
[320646181,1711485049785,-500.0,0.00021917,2]
[320646183,1711485049795,-500.0,0.00021917,2]
[320646185,1711485049804,-691.75,0.00021917,2]
[320646187,1711485049813,-500.0,0.00021917,2]
[320646189,1711485049822,-500.0,0.00021917,2]
[320646191,1711485049831,-209.26005491,0.00021917,2]
[320646193,1711485049840,-1487.45502435,0.00021917,2]
[320647529,1711485176424,264.37836873,0.00019175,7]
[320647532,1711486204974,903.85613351,0.00018122,2]
[320647677,1711486238142,-187.46769589,0.00018799,2]
[320647678,1711486238151,-1325.08230752,0.00018897,2]
[320647755,1711486240068,-1308.00001,0.00018897,2]
[320647763,1711486240131,-593.9099914,0.00018897,2]
[320647765,1711486240140,-1612.5059799,0.00018898,2]
[320647768,1711486240152,-310.13554214,0.00018898,2]
[320647770,1711486240161,-49.3654579,0.000189,2]